fUSD/lending_fUSD_20250623
["ID","MTS","AMOUNT","RATE_DAILY","PERIOD"]
[367155374,1750677047890,-150.0,0.00024138,2]
[367155375,1750677047899,-150.0,0.00024141,2]
[367155376,1750677047908,-626.35553558,0.00024158,2]
[367155377,1750677047917,-586.0,0.00024164,2]
[367155378,1750677047926,-162.0,0.00024164,7]
[367155379,1750677047935,-1996.0,0.00024181,2]
[367155380,1750677047944,-150.0,0.00024181,2]
[367155381,1750677047954,-156.17677532,0.00024184,2]
[367155382,1750677047963,-1997.0,0.00024215,2]
[367155383,1750677047973,-864.0,0.00024261,2]
[367155384,1750677047982,-356.93356284,0.00024279,10]
[367155386,1750677047991,-159.748951,0.00024333,7]
[367155388,1750677048000,-159.748953,0.00024333,7]
[367155390,1750677048010,-586.0,0.00024364,2]
[367155392,1750677048018,-4504.0816069,0.00024379,2]
[367155394,1750677048029,-1996.0,0.00024384,2]
[367155396,1750677048038,-2146.2919,0.00024453,2]
[367155398,1750677048048,-200.0,0.00024459,2]
[367155400,1750677048057,-2000.0,0.0002446,2]
[367155402,1750677048066,-200.0,0.0002446,2]
[367155404,1750677048075,-2786.6291088,0.00024467,2]
[367155406,1750677048084,-156.17677532,0.00024468,2]
[367155407,1750677048094,-165.10763999,0.000245,2]
[367155409,1750677048104,-151.520898,0.00024553,7]
[367155411,1750677048113,-151.0,0.00024553,7]
[367155413,1750677048123,-151.0,0.00024553,7]
[367155416,1750677048132,-151.0,0.00024553,7]
[367155417,1750677048142,-151.0,0.00024553,7]
[367155419,1750677048151,-151.0,0.00024553,7]
[367155421,1750677048160,-963.832622,0.00024553,7]
[367155423,1750677048169,-963.832622,0.00024553,7]
[367155425,1750677048179,-464.278375,0.00024553,7]
[367155427,1750677048188,-464.278375,0.00024553,7]
[367155429,1750677048198,-151.0,0.00024553,7]
[367155431,1750677048206,-640.27247366,0.00024557,2]
[367155433,1750677048216,-1000.0,0.00024597,2]
[367155435,1750677048225,-5000.0,0.000246,7]
[367155437,1750677048233,-5000.0,0.000246,6]
[367155439,1750677048243,-5000.0,0.000246,5]
[367155441,1750677048252,-5000.0,0.000246,4]
[367155443,1750677048261,-4590.0,0.000246,3]
[367155445,1750677048271,-1551.69648347,0.000246,2]
[367155447,1750677048280,-500.0,0.000246,8]
[367155449,1750677048289,-331.68,0.00024612,2]
[367155451,1750677048298,-463.86386727,0.00024647,2]
[367155453,1750677048309,-709.13214714,0.0002465,15]
[367155455,1750677048318,-154.07,0.00024656,2]
[367155457,1750677048327,-300.0,0.00024656,2]
[367155459,1750677048336,-300.0,0.00024656,2]
[367155461,1750677048345,-248885.83813462,0.00024657,2]
[367155463,1750677048354,-158.24,0.00024657,2]
[367155464,1750677048363,-36552.94230669,0.00024657,2]
[367155467,1750677048374,-445.5666314,0.00024657,2]
[367155469,1750677048384,-227.323069,0.00024657,2]
[367155471,1750677048393,-172.58181,0.00024657,2]
[367155472,1750677048403,-3476.271136,0.00024657,2]
[367155474,1750677048413,-164.703374,0.00024657,2]
[367155476,1750677048423,-151.0,0.00024657,7]
[367155478,1750677048432,-151.476984,0.00024657,2]
[367155480,1750677048442,-167.790877,0.00024657,2]
[367155482,1750677048457,-172.581807,0.00024657,2]
[367155484,1750677048466,-152.833904,0.00024657,7]
[367155486,1750677048475,-164.703372,0.00024657,2]
[367155488,1750677048485,-159.179497,0.00024657,7]
[367155490,1750677048494,-490.0,0.00024657,2]
[367155492,1750677048505,-504.53,0.00024657,2]
[367155494,1750677048519,-490.0,0.00024657,2]
[367155496,1750677048529,-490.0,0.00024657,2]
[367155498,1750677048538,-758.37,0.00024657,2]
[367155500,1750677048548,-151.0,0.00024657,7]
[367155502,1750677048557,-153.942351,0.00024657,7]
[367155504,1750677048567,-630.69,0.00024657,2]
[367155506,1750677048576,-490.0,0.00024657,2]
[367155508,1750677048586,-527.99271155,0.00024657,2]
[367155510,1750677048595,-963.832622,0.00024657,7]
[367155512,1750677048604,-963.832622,0.00024657,7]
[367155514,1750677048613,-963.832622,0.00024657,7]
[367155516,1750677048622,-963.832622,0.00024657,7]
[367155518,1750677048633,-963.832622,0.00024657,7]
[367155520,1750677048646,-963.832622,0.00024657,7]
[367155522,1750677048655,-963.832622,0.00024657,7]
[367155524,1750677048664,-963.832622,0.00024657,7]
[367155526,1750677048674,-963.832622,0.00024657,7]
[367155527,1750677048684,-963.832622,0.00024657,7]
[367155529,1750677048694,-963.832622,0.00024657,7]
[367155531,1750677048703,-963.832614,0.00024657,7]
[367155533,1750677048712,-601.83,0.00024657,2]
[367155535,1750677048724,-164.978306,0.00024657,2]
[367155538,1750677048735,-490.0,0.00024657,2]
[367155540,1750677048744,-152.460564,0.00024657,2]
[367155542,1750677048754,-490.0,0.00024657,2]
[367155543,1750677048764,-490.0,0.00024657,2]
[367155545,1750677048774,-323.95999062,0.00024657,2]
[367155547,1750677048783,-603.65,0.00024657,2]
[367155549,1750677048794,-490.0,0.00024657,2]
[367155551,1750677048803,-521.7392497,0.00024657,2]
[367155553,1750677048814,-464.278375,0.00024657,7]
[367155555,1750677048824,-464.278375,0.00024657,7]
[367155557,1750677048834,-464.278375,0.00024657,7]
[367155560,1750677048844,-464.278375,0.00024657,7]
[367155561,1750677048854,-464.278375,0.00024657,7]
[367155564,1750677048863,-464.278375,0.00024657,7]
[367155565,1750677048873,-464.278375,0.00024657,7]
[367155567,1750677048884,-464.278375,0.00024657,7]
[367155569,1750677048894,-464.278375,0.00024657,7]
[367155571,1750677048903,-464.278375,0.00024657,7]
[367155573,1750677048912,-464.278375,0.00024657,7]
[367155575,1750677048922,-464.278373,0.00024657,7]
[367155577,1750677048931,-247.45871265,0.00024657,2]
[367155579,1750677048941,-280.0,0.00024657,2]
[367155581,1750677048951,-499.24,0.00024657,2]
[367155583,1750677048960,-490.0,0.00024657,2]
[367155585,1750677048970,-490.0,0.00024657,2]
[367155587,1750677048980,-586.75,0.00024657,2]
[367155589,1750677048989,-1623.452874,0.00024657,2]
[367155591,1750677048998,-490.0,0.00024657,2]
[367155593,1750677049007,-490.0,0.00024657,2]
[367155595,1750677049017,-492.21730544,0.00024657,2]
[367155597,1750677049026,-490.0,0.00024657,2]
[367155599,1750677049036,-490.0,0.00024657,2]
[367155601,1750677049046,-490.0,0.00024657,2]
[367155603,1750677049055,-490.0,0.00024657,2]
[367155605,1750677049065,-918.18,0.00024657,2]
[367155607,1750677049074,-490.0,0.00024657,2]
[367155609,1750677049083,-490.0,0.00024657,2]
[367155611,1750677049092,-524.69439248,0.00024657,2]
[367155613,1750677049101,-490.0,0.00024657,2]
[367155615,1750677049110,-490.0,0.00024657,2]
[367155617,1750677049120,-490.0,0.00024657,2]
[367155619,1750677049130,-427.87699809,0.00024657,2]
[367155621,1750677049140,-490.0,0.00024657,2]
[367155623,1750677049149,-808.76,0.00024657,2]
[367155625,1750677049158,-490.0,0.00024657,2]
[367155627,1750677049168,-490.0,0.00024657,2]
[367155629,1750677049177,-490.0,0.00024657,2]
[367155631,1750677049186,-490.0,0.00024657,2]
[367155633,1750677049195,-490.0,0.00024657,2]
[367155634,1750677049204,-490.0,0.00024657,2]
[367155636,1750677049213,-160.15541214,0.00024657,2]
[367155638,1750677049222,-620.55,0.00024657,2]
[367155640,1750677049232,-490.0,0.00024657,2]
[367155643,1750677049242,-490.0,0.00024657,2]
[367155644,1750677049252,-490.0,0.00024657,2]
[367155646,1750677049262,-490.0,0.00024657,2]
[367155649,1750677049272,-1017.1,0.00024657,2]
[367155650,1750677049282,-490.0,0.00024657,2]
[367155652,1750677049291,-490.0,0.00024657,2]
[367155654,1750677049301,-490.0,0.00024657,2]
[367155656,1750677049311,-490.0,0.00024657,2]
[367155658,1750677049320,-490.0,0.00024657,2]
[367155660,1750677049330,-523.25327982,0.00024657,2]
[367155662,1750677049339,-490.0,0.00024657,2]
[367155664,1750677049349,-301.85522747,0.00024657,2]
[367155666,1750677049358,-490.0,0.00024657,2]
[367155668,1750677049367,-490.0,0.00024657,2]
[367155670,1750677049376,-586.77,0.00024657,2]
[367155672,1750677049386,-490.0,0.00024657,2]
[367155674,1750677049395,-213.42768831,0.00024657,2]
[367155677,1750677049404,-490.0,0.00024657,2]
[367155678,1750677049413,-490.0,0.00024657,2]
[367155680,1750677049423,-490.0,0.00024657,2]
[367155682,1750677049432,-490.0,0.00024657,2]
[367155684,1750677049441,-224.33826895,0.00024657,2]
[367155687,1750677049451,-589.33,0.00024657,2]
[367155688,1750677049460,-490.0,0.00024657,2]
[367155691,1750677049469,-490.0,0.00024657,2]
[367155693,1750677049478,-490.0,0.00024657,2]
[367155695,1750677049487,-593.2,0.00024657,2]
[367155696,1750677049496,-490.0,0.00024657,2]
[367155698,1750677049506,-822.19,0.00024657,2]
[367155701,1750677049515,-490.0,0.00024657,2]
[367155702,1750677049524,-490.0,0.00024657,2]
[367155704,1750677049534,-564.69,0.00024657,2]
[367155706,1750677049543,-490.0,0.00024657,2]
[367155708,1750677049553,-490.0,0.00024657,2]
[367155711,1750677049564,-1355.79,0.00024657,2]
[367155713,1750677049573,-490.0,0.00024657,2]
[367155714,1750677049582,-490.0,0.00024657,2]
[367155716,1750677049592,-641.76,0.00024657,2]
[367155718,1750677049601,-490.0,0.00024657,2]
[367155720,1750677049610,-490.0,0.00024657,2]
[367155722,1750677049619,-490.0,0.00024657,2]
[367155724,1750677049629,-490.0,0.00024657,2]
[367155726,1750677049642,-490.0,0.00024657,2]
[367155728,1750677049651,-462.04864114,0.00024657,2]
[367155730,1750677049661,-300.61263996,0.00024657,2]
[367155732,1750677049670,-490.0,0.00024657,2]
[367155734,1750677049679,-490.0,0.00024657,2]
[367155736,1750677049690,-490.0,0.00024657,2]
[367155738,1750677049700,-490.0,0.00024657,2]
[367155740,1750677049709,-490.0,0.00024657,2]
[367155742,1750677049719,-782.71,0.00024657,2]
[367155744,1750677049729,-633.07,0.00024657,2]
[367155746,1750677049739,-490.0,0.00024657,2]
[367155748,1750677049748,-490.0,0.00024657,2]
[367155750,1750677049757,-490.0,0.00024657,2]
[367155752,1750677049766,-490.0,0.00024657,2]
[367155754,1750677049776,-490.0,0.00024657,2]
[367155757,1750677049786,-490.0,0.00024657,2]
[367155758,1750677049795,-164.90786216,0.00024657,2]
[367155760,1750677049805,-490.0,0.00024657,2]
[367155762,1750677049814,-490.0,0.00024657,2]
[367155764,1750677049823,-658.96,0.00024657,2]
[367155766,1750677049832,-490.0,0.00024657,2]
[367155768,1750677049841,-490.0,0.00024657,2]
[367155770,1750677049850,-525.14,0.00024657,2]
[367155772,1750677049860,-488.69027798,0.00024657,2]
[367155774,1750677049870,-490.0,0.00024657,2]
[367155776,1750677049880,-490.0,0.00024657,2]
[367155790,1750677049890,-890.5,0.00024657,2]
[367155793,1750677050018,-490.0,0.00024657,2]
[367155795,1750677050028,-490.0,0.00024657,2]
[367155797,1750677050038,-1072.94,0.00024657,2]
[367155799,1750677050047,-490.0,0.00024657,2]
[367155801,1750677050057,-490.0,0.00024657,2]
[367155803,1750677050067,-320.19120491,0.00024657,2]
[367155806,1750677050077,-490.0,0.00024657,2]
[367155808,1750677050086,-490.0,0.00024657,2]
[367155810,1750677050095,-153.552941,0.00024657,2]
[367155812,1750677050104,-490.0,0.00024657,2]
[367155814,1750677050113,-490.0,0.00024657,2]
[367155816,1750677050123,-490.0,0.00024657,2]
[367155818,1750677050132,-490.0,0.00024657,2]
[367155820,1750677050142,-490.0,0.00024657,2]
[367155822,1750677050151,-490.0,0.00024657,2]
[367155824,1750677050160,-490.0,0.00024657,2]
[367155826,1750677050170,-555.61,0.00024657,2]
[367155828,1750677050180,-524.5421703,0.00024657,2]
[367155830,1750677050190,-490.0,0.00024657,2]
[367155832,1750677050200,-2078.73,0.00024657,2]
[367155834,1750677050210,-490.0,0.00024657,2]
[367155836,1750677050219,-490.0,0.00024657,2]
[367155838,1750677050228,-531.38,0.00024657,2]
[367155840,1750677050238,-490.0,0.00024657,2]
[367155842,1750677050247,-539.95,0.00024657,2]
[367155844,1750677050256,-675.85,0.00024657,2]
[367155846,1750677050266,-255.87206011,0.00024657,2]
[367155848,1750677050275,-889.68,0.00024657,2]
[367155850,1750677050284,-490.0,0.00024657,2]
[367155852,1750677050294,-591.96,0.00024657,2]
[367155854,1750677050303,-750.5,0.00024657,2]
[367155856,1750677050312,-1290.37,0.00024657,2]
[367155858,1750677050321,-1496.75,0.00024657,2]
[367155860,1750677050331,-490.0,0.00024657,2]
[367155862,1750677050340,-1425.09,0.00024657,2]
[367155864,1750677050349,-490.0,0.00024657,2]
[367155866,1750677050359,-490.0,0.00024657,2]
[367155868,1750677050368,-2003.83,0.00024657,2]
[367155870,1750677050383,-698.17,0.00024657,2]
[367155872,1750677050393,-490.0,0.00024657,2]
[367155874,1750677050402,-490.0,0.00024657,2]
[367155876,1750677050413,-1329.32,0.00024657,2]
[367155878,1750677050423,-283.16246042,0.00024657,2]
[367155880,1750677050433,-701.54,0.00024657,2]
[367155882,1750677050442,-921.251347,0.00024657,2]
[367155884,1750677050452,-490.0,0.00024657,2]
[367155886,1750677050461,-514.46301292,0.00024657,2]
[367155888,1750677050471,-490.0,0.00024657,2]
[367155890,1750677050480,-490.0,0.00024657,2]
[367155892,1750677050489,-490.0,0.00024657,2]
[367155894,1750677050499,-490.0,0.00024657,2]
[367155896,1750677050508,-1523.37,0.00024657,2]
[367155899,1750677050517,-511.03,0.00024657,2]
[367155901,1750677050528,-760.19,0.00024657,2]
[367155903,1750677050538,-490.0,0.00024657,2]
[367155905,1750677050547,-773.89,0.00024657,2]
[367155907,1750677050557,-583.1,0.00024657,2]
[367155909,1750677050566,-490.0,0.00024657,2]
[367155911,1750677050575,-490.0,0.00024657,2]
[367155913,1750677050584,-490.0,0.00024657,2]
[367155915,1750677050593,-490.0,0.00024657,2]
[367155917,1750677050602,-1268.81,0.00024657,2]
[367155919,1750677050611,-795.53,0.00024657,2]
[367155921,1750677050620,-291.20586164,0.00024657,2]
[367155923,1750677050630,-490.0,0.00024657,2]
[367155925,1750677050645,-490.0,0.00024657,2]
[367155927,1750677050654,-764.99,0.00024657,2]
[367155929,1750677050663,-1729.12,0.00024657,2]
[367155931,1750677050672,-1463.56,0.00024657,2]
[367155933,1750677050682,-300.0,0.00024657,4]
[367155935,1750677050691,-490.0,0.00024657,2]
[367155937,1750677050701,-588.39,0.00024657,2]
[367155939,1750677050710,-490.0,0.00024657,2]
[367155941,1750677050719,-490.0,0.00024657,2]
[367155943,1750677050729,-490.0,0.00024657,2]
[367155945,1750677050738,-563.66,0.00024657,2]
[367155947,1750677050748,-2880.86,0.00024657,2]
[367155949,1750677050757,-607.33,0.00024657,2]
[367155951,1750677050766,-490.0,0.00024657,2]
[367155953,1750677050775,-490.0,0.00024657,2]
[367155955,1750677050784,-490.0,0.00024657,2]
[367155957,1750677050794,-1492.15,0.00024657,2]
[367155959,1750677050804,-1903.33,0.00024657,2]
[367155960,1750677050813,-490.0,0.00024657,2]
[367155963,1750677050824,-490.0,0.00024657,2]
[367155965,1750677050833,-909.14,0.00024657,2]
[367155967,1750677050843,-490.0,0.00024657,2]
[367155969,1750677050852,-677.65,0.00024657,2]
[367155971,1750677050861,-490.0,0.00024657,2]
[367155973,1750677050871,-872.82,0.00024657,2]
[367155975,1750677050881,-1173.09,0.00024657,2]
[367155977,1750677050890,-1009.28,0.00024657,2]
[367155979,1750677050899,-504.99,0.00024657,2]
[367155981,1750677050908,-1149.6,0.00024657,2]
[367155983,1750677050918,-490.0,0.00024657,2]
[367155985,1750677050927,-500.0,0.00024657,2]
[367155987,1750677050936,-490.0,0.00024657,2]
[367155989,1750677050945,-500.0,0.00024657,2]
[367155991,1750677050955,-490.0,0.00024657,2]
[367155993,1750677050965,-500.0,0.00024657,2]
[367155995,1750677050974,-500.0,0.00024657,2]
[367155997,1750677050983,-500.0,0.00024657,2]
[367155999,1750677050993,-500.0,0.00024657,2]
[367156001,1750677051003,-220.2,0.00024657,2]
[367156003,1750677051013,-490.0,0.00024657,2]
[367156005,1750677051023,-490.0,0.00024657,2]
[367156006,1750677051034,-490.0,0.00024657,2]
[367156007,1750677051043,-752.92,0.00024657,2]
[367156008,1750677051053,-490.0,0.00024657,2]
[367156009,1750677051062,-957.67,0.00024657,2]
[367156010,1750677051071,-1824.97,0.00024657,2]
[367156011,1750677051081,-490.0,0.00024657,2]
[367156012,1750677051091,-1205.51,0.00024657,2]
[367156013,1750677051100,-490.0,0.00024657,2]
[367156014,1750677051109,-548.2089135,0.00024657,2]
[367156015,1750677051119,-490.0,0.00024657,2]
[367156016,1750677051128,-490.0,0.00024657,2]
[367156017,1750677051137,-490.0,0.00024657,2]
[367156018,1750677051147,-1483.84,0.00024657,2]
[367156019,1750677051157,-490.0,0.00024657,2]
[367156020,1750677051166,-1138.1,0.00024657,2]
[367156021,1750677051176,-1340.56,0.00024657,2]
[367156022,1750677051186,-1021.65,0.00024657,2]
[367156023,1750677051195,-1652.89,0.00024657,2]
[367156024,1750677051205,-505.53651532,0.00024657,2]
[367156025,1750677051215,-490.0,0.00024657,2]
[367156026,1750677051225,-1529.36,0.00024657,2]
[367156027,1750677051234,-490.0,0.00024657,2]
[367156028,1750677051244,-490.0,0.00024657,2]
[367156029,1750677051254,-904.97,0.00024657,2]
[367156030,1750677051263,-490.0,0.00024657,2]
[367156031,1750677051273,-490.0,0.00024657,2]
[367156032,1750677051283,-528.51,0.00024657,2]
[367156034,1750677051292,-788.59,0.00024657,2]
[367156036,1750677051301,-2486.92,0.00024657,2]
[367156038,1750677051311,-490.0,0.00024657,2]
[367156040,1750677051321,-490.0,0.00024657,2]
[367156042,1750677051332,-490.0,0.00024657,2]
[367156044,1750677051341,-1582.53,0.00024657,2]
[367156046,1750677051351,-496.91063826,0.00024657,2]
[367156048,1750677051361,-490.0,0.00024657,2]
[367156049,1750677051370,-490.0,0.00024657,2]
[367156050,1750677051379,-1695.3,0.00024657,2]
[367156051,1750677051389,-490.0,0.00024657,2]
[367156052,1750677051398,-490.0,0.00024657,2]
[367156053,1750677051408,-490.0,0.00024657,2]
[367156054,1750677051419,-953.91,0.00024657,2]
[367156055,1750677051428,-604.61674075,0.00024657,2]
[367156056,1750677051438,-492.09,0.00024657,2]
[367156057,1750677051448,-490.0,0.00024657,2]
[367156058,1750677051457,-490.0,0.00024657,2]
[367156059,1750677051466,-490.0,0.00024657,2]
[367156060,1750677051476,-692.67,0.00024657,2]
[367156061,1750677051485,-1498.14,0.00024657,2]
[367156062,1750677051495,-490.0,0.00024657,2]
[367156063,1750677051506,-554.0,0.00024657,2]
[367156064,1750677051515,-1096.84,0.00024657,2]
[367156065,1750677051525,-1564.99,0.00024657,2]
[367156066,1750677051535,-490.0,0.00024657,2]
[367156067,1750677051545,-775.42,0.00024657,2]
[367156068,1750677051554,-1320.24,0.00024657,2]
[367156069,1750677051565,-490.0,0.00024657,2]
[367156070,1750677051575,-490.0,0.00024657,2]
[367156071,1750677051586,-877.66,0.00024657,2]
[367156072,1750677051596,-490.0,0.00024657,2]
[367156073,1750677051606,-490.0,0.00024657,2]
[367156074,1750677051617,-490.0,0.00024657,2]
[367156075,1750677051627,-490.0,0.00024657,2]
[367156076,1750677051641,-1303.25,0.00024657,2]
[367156077,1750677051651,-300.0,0.00024657,2]
[367156078,1750677051661,-490.0,0.00024657,2]
[367156079,1750677051671,-490.0,0.00024657,2]
[367156080,1750677051680,-622.91,0.00024657,2]
[367156081,1750677051691,-714.7,0.00024657,2]
[367156082,1750677051703,-490.0,0.00024657,2]
[367156083,1750677051713,-242.76854254,0.00024657,2]
[367156084,1750677051723,-830.31,0.00024657,2]
[367156085,1750677051733,-552.55,0.00024657,2]
[367156086,1750677051743,-490.0,0.00024657,2]
[367156087,1750677051752,-490.0,0.00024657,2]
[367156088,1750677051762,-490.0,0.00024657,2]
[367156089,1750677051772,-1127.76,0.00024657,2]
[367156090,1750677051782,-1061.66,0.00024657,2]
[367156091,1750677051791,-1443.33,0.00024657,2]
[367156092,1750677051802,-725.11,0.00024657,2]
[367156093,1750677051812,-2244.9,0.00024657,2]
[367156094,1750677051821,-490.0,0.00024657,2]
[367156095,1750677051831,-490.0,0.00024657,2]
[367156096,1750677051841,-490.0,0.00024657,2]
[367156097,1750677051851,-1507.62,0.00024657,2]
[367156098,1750677051860,-490.0,0.00024657,2]
[367156099,1750677051870,-490.0,0.00024657,2]
[367156100,1750677051880,-490.0,0.00024657,2]
[367156101,1750677051889,-1470.81,0.00024657,2]
[367156102,1750677051899,-516.66,0.00024657,2]
[367156103,1750677051909,-490.0,0.00024657,2]
[367156104,1750677051918,-490.0,0.00024657,2]
[367156105,1750677051928,-2192.5,0.00024657,2]
[367156106,1750677051937,-611.61,0.00024657,2]
[367156107,1750677051947,-490.0,0.00024657,2]
[367156108,1750677051956,-490.0,0.00024657,2]
[367156109,1750677051965,-314.73,0.00024657,2]
[367156110,1750677051975,-490.0,0.00024657,2]
[367156111,1750677051984,-1253.17,0.00024657,2]
[367156112,1750677051993,-839.41,0.00024657,2]
[367156113,1750677052003,-1054.53,0.00024657,2]
[367156114,1750677052012,-1206.47,0.00024657,2]
[367156115,1750677052021,-1425.65,0.00024657,2]
[367156116,1750677052031,-2415.2,0.00024657,2]
[367156117,1750677052041,-893.36,0.00024657,2]
[367156118,1750677052050,-621.13,0.00024657,2]
[367156119,1750677052059,-490.0,0.00024657,2]
[367156120,1750677052069,-490.0,0.00024657,2]
[367156121,1750677052078,-948.46,0.00024657,2]
[367156122,1750677052087,-1564.45,0.00024657,2]
[367156123,1750677052394,-490.0,0.00024657,2]
[367156124,1750677052404,-490.0,0.00024657,2]
[367156125,1750677052414,-1074.16,0.00024657,2]
[367156126,1750677052424,-490.0,0.00024657,2]
[367156127,1750677052434,-585.33,0.00024657,2]
[367156128,1750677052443,-490.0,0.00024657,2]
[367156129,1750677052453,-490.0,0.00024657,2]
[367156130,1750677052463,-490.0,0.00024657,2]
[367156131,1750677052473,-490.0,0.00024657,2]
[367156132,1750677052484,-975.39,0.00024657,2]
[367156133,1750677052494,-2083.42,0.00024657,2]
[367156134,1750677052504,-490.0,0.00024657,2]
[367156135,1750677052516,-490.0,0.00024657,2]
[367156136,1750677052526,-490.0,0.00024657,2]
[367156137,1750677052536,-490.0,0.00024657,2]
[367156138,1750677052546,-897.14,0.00024657,2]
[367156139,1750677052555,-496.18276942,0.00024657,2]
[367156140,1750677052565,-1029.14,0.00024657,2]
[367156141,1750677052575,-1015.98,0.00024657,2]
[367156142,1750677052584,-408.87550557,0.00024657,2]
[367156143,1750677052596,-1672.35,0.00024657,2]
[367156144,1750677052606,-689.93,0.00024657,2]
[367156145,1750677052615,-516.0079978,0.00024657,2]
[367156146,1750677052625,-490.0,0.00024657,2]
[367156147,1750677052638,-490.0,0.00024657,2]
[367156148,1750677052649,-490.0,0.00024657,2]
[367156149,1750677052658,-490.0,0.00024657,2]
[367156150,1750677052667,-1356.52,0.00024657,2]
[367156151,1750677052677,-490.0,0.00024657,2]
[367156152,1750677052688,-490.0,0.00024657,2]
[367156153,1750677052697,-359.85708488,0.00024657,2]
[367156154,1750677052708,-918.31,0.00024657,2]
[367156155,1750677052720,-490.0,0.00024657,2]
[367156156,1750677052730,-490.0,0.00024657,2]
[367156157,1750677052740,-490.0,0.00024657,2]
[367156158,1750677052751,-607.34,0.00024657,2]
[367156159,1750677052761,-490.0,0.00024657,2]
[367156160,1750677052771,-490.0,0.00024657,2]
[367156161,1750677052781,-980.97,0.00024657,2]
[367156162,1750677052790,-490.0,0.00024657,2]
[367156163,1750677052799,-490.0,0.00024657,2]
[367156164,1750677052809,-2024.53,0.00024657,2]
[367156165,1750677052819,-213.67803298,0.00024657,2]
[367156166,1750677052830,-490.0,0.00024657,2]
[367156167,1750677052839,-741.94,0.00024657,2]
[367156168,1750677052849,-1000.0,0.00024657,2]
[367156169,1750677052859,-490.0,0.00024657,2]
[367156170,1750677052869,-490.0,0.00024657,2]
[367156171,1750677052879,-490.0,0.00024657,2]
[367156172,1750677052889,-549.9,0.00024657,2]
[367156173,1750677052899,-876.32,0.00024657,2]
[367156174,1750677052909,-327.2059935,0.00024657,2]
[367156175,1750677052918,-1429.05,0.00024657,2]
[367156176,1750677052928,-490.0,0.00024657,2]
[367156177,1750677052938,-490.0,0.00024657,2]
[367156178,1750677052948,-490.0,0.00024657,2]
[367156179,1750677052957,-873.91,0.00024657,2]
[367156180,1750677052967,-500.0,0.00024657,2]
[367156181,1750677052977,-500.0,0.00024657,2]
[367156182,1750677052987,-490.0,0.00024657,2]
[367156183,1750677052997,-490.0,0.00024657,2]
[367156184,1750677053007,-1529.34,0.00024657,2]
[367156185,1750677053017,-490.0,0.00024657,2]
[367156186,1750677053027,-566.07,0.00024657,2]
[367156187,1750677053038,-490.0,0.00024657,2]
[367156188,1750677053048,-814.62,0.00024657,2]
[367156189,1750677053057,-490.0,0.00024657,2]
[367156190,1750677053067,-779.14,0.00024657,2]
[367156191,1750677053077,-490.0,0.00024657,2]
[367156192,1750677053086,-490.0,0.00024657,2]
[367156193,1750677053096,-490.0,0.00024657,2]
[367156194,1750677053107,-574.6,0.00024657,2]
[367156195,1750677053116,-412.35753251,0.00024657,2]
[367156196,1750677053126,-2383.16,0.00024657,2]
[367156197,1750677053136,-490.0,0.00024657,2]